Cogmind - Beta 16 @@@ ROGUE MODE // 2025.11.06 @ 19:24:23 Player: Mozco Result: Destroyed by 8R-AWN with 8R-AWN's Boregun Performance ------------- Evolutions (0) 0 Regions Visited (3) 600 Robots Destroyed (29) 145 Value Destroyed (676) 676 Prototype IDs (27) 540 Alien Tech Used (0) 0 Bonus (300) 300 TOTAL SCORE: 2261 Bonus ------- Aligned with FarCom 300 Cogmind --------- Core Integrity 0/250 Matter 248/300 Energy 26/100 System Corruption 3% Temperature Cool (70) Movement Walking (190) Ox1 Location -10/Exiles Parts ------- > --- POWER (1) -------- (None) > --- PROPULSION (2) --- Aluminum Leg > --- UTILITY (2) ------ Medium Storage Unit > --- WEAPON (2) ------- Beam Cannon > --- INVENTORY (10) --- Ion Engine Aluminum Leg Large Storage Unit High-capacity Battery (250) Modified TNC Light Armor Plating Grenade Launcher Rocket Launcher Datajack Peak State ------------ > --- POWER ------------ Ion Engine > --- PROPULSION ------- Aluminum Leg Aluminum Leg > --- UTILITY ---------- Medium Storage Unit Targeting Computer > --- WEAPON ----------- Beam Cannon Beam Cannon > --- INVENTORY -------- Ion Engine Aluminum Leg Aluminum Leg Large Battery Visual Processing Unit Light Armor Plating Beam Cannon Grenade Launcher Datajack [Rating: 8] Favorites ----------- Power Ion Engine Engine Ion Engine Propulsion Aluminum Leg Leg Aluminum Leg Utility Targeting Computer Storage Medium Storage Unit Processor Targeting Computer Weapon Beam Cannon Energy Gun EM Pulse Gun Energy Cannon Beam Cannon Ballistic Gun Assault Rifle Launcher Rocket Launcher Build | -11 -10 -10 -10 ------- Run | Yrd Mat Min Exi Slots Evolved . | . . . . Power . | . . . . Propulsion . | . . . . Utility . | . . . . Weapon . | . . . . Parts Attached 19 | 7 9 1 2 Power 2 | 1 1 . . Engine 2 | 1 1 . . Core . | . . . . Reactor . | . . . . Propulsion 5 | 2 2 1 . Treads . | . . . . Leg 5 | 2 2 1 . Wheel . | . . . . Hover . | . . . . Flight . | . . . . Utility 3 | 1 2 . . Device . | . . . . Storage 2 | 1 1 . . Processor 1 | . 1 . . Hackware . | . . . . Protection . | . . . . Artifact . | . . . . Weapon 9 | 3 4 . 2 Energy Gun 1 | 1 . . . Energy Cannon 5 | . 4 . 1 Ballistic Gun 2 | 2 . . . Ballistic Cannon . | . . . . Launcher 1 | . . . 1 Special Weapon . | . . . . Impact Weapon . | . . . . Slashing Weapon . | . . . . Piercing Weapon . | . . . . Special Melee Weapon . | . . . . Unidentified Prototypes . | . . . . Parts Lost 7 | . 1 1 5 Power 1 | . . . 1 Propulsion 2 | . . 1 1 Utility 1 | . . . 1 Weapon 3 | . 1 . 2 Highest Loss Streak 5 | . 1 1 5 To Critical Strikes 2 | . . . 2 Average Backups 8 | . 7 9 9 Power . | . . 1 1 Propulsion 1 | . 1 1 1 Utility 2 | . 1 3 3 Weapon 2 | . 2 2 2 Tool/Special . | . . . . Unused Backups 12 | . 2 1 9 Power 1 | . . . 1 Propulsion 2 | . 1 . 1 Utility 7 | . 1 1 5 Weapon 1 | . . . 1 Tool/Special 1 | . . . 1 Average Slot Usage (%) 98 | . 98 99 99 Engine 13 | . 14 14 13 Leg 27 | . 28 27 27 Storage 14 | . 14 14 14 Processor 13 | . 12 14 13 Energy Gun 3 | . 6 . . Energy Cannon 21 | . 16 28 27 Ballistic Gun 2 | . 4 . . Peak Build Rating 8 | 6 8 8 8 Average Rating 7 | 4 7 7 7 On Entrance 5 | . 6 8 8 Avg Prop Armor Cover (%) . | . . . . Naked Turns . | . . . . Heaviest Build 21 | 14 21 21 21 Greatest Support 20 | 20 20 20 20 Greatest Overweight (x) 1 | . 1 1 1 Average Overweight (x) . | . . 1 1 Largest Inventory Capacity 10 | 8 10 10 10 Average Capacity 9 | 6 8 10 10 Most Carried 10 | 1 9 10 10 Average Carried 8 | . 7 9 9 Final Capacity 10 | 8 10 10 10 Final Carried 10 | 1 9 10 9 Class Distribution -------------------- 100% | Mutant Dominant Class ---------------- Mutant | -10/Materials Mutant | -10/Mines Mutant | -10/Exiles Resources | -11 -10 -10 -10 ----------- Run | Yrd Mat Min Exi Matter Collected 520 | 170 312 38 . Remotely . | . . . . Salvage Created 1128 | . 873 244 11 Parts 47 | . 38 9 . Haulers Intercepted 2 | . 2 . . Recyclers Shooed . | . . . . Parts Field Recycled . | . . . . Retrieved Matter . | . . . . Parts Self-Destructed . | . . . . Prevented . | . . . . Parts Restored . | . . . . Kills | -11 -10 -10 -10 ------- Run | Yrd Mat Min Exi Combat Hostiles Destroyed 25 | . 15 5 5 Guns 8 | . 8 . . Cannons 10 | . 6 4 . AOE 6 | . 1 . 5 Classes Destroyed 8 | . 6 1 1 Worker 1 | . . 1 . Hauler 2 | . 2 . . Recycler 2 | . 2 . . Operator 1 | . 1 . . Watcher 3 | . 3 . . Swarmer 6 | . 6 . . Grunt 14 | . 9 5 . Assembled 5 | . . . 5 Best Kill Streak 5 | . 5 3 5 Combat Bots Only 5 | . 3 2 5 Max Kills in Single Turn 2 | . 1 2 2 Gunslinging . | . . . . Exploded 2 | . 1 . 2 Melee . | . . . . Uniques/NPCs Destroyed . | . . . . Combat | -11 -10 -10 -10 -------- Run | Yrd Mat Min Exi Hostile Shots Fired 116 | . 59 16 41 Missed 27 | . 13 3 11 Hits 89 | . 46 13 30 Melee 1 | . . . 1 Projectile 88 | . 46 13 29 Critical Strikes 5 | . . . 5 Damage Taken 1092 | . 413 187 492 Core 260 | . 85 28 147 Absorbed by Shields . | . . . . Core Remaining (%) 100 | 100 . . . Volleys Fired 77 | . 60 10 7 Largest 2 | . 2 2 2 Hottest 120 | . 120 120 120 Shots Fired 143 | . 112 20 11 Gun 74 | . 74 . . Cannon 66 | . 38 20 8 Launcher 3 | . . . 3 Special . | . . . . Kinetic 32 | . 32 . . Thermal 66 | . 38 20 8 Explosive 3 | . . . 3 Electromagnetic 42 | . 42 . . Robot Hit Streak 9 | . 9 6 6 Robot Miss Streak 7 | . 7 2 2 Penetration Max . | . . . . Secondary Targets . | . . . . Shots Hit Robots 86 | . 67 12 7 Core Hits 45 | . 29 7 9 Critical Kills 1 | . . 1 . Critical Parts Destroyed . | . . . . Critical Strikes 3 | . 2 1 . Meltdown 1 | . . 1 . Corrupt 2 | . 2 . . Melee Attacks . | . . . . Impact . | . . . . Slashing . | . . . . Piercing . | . . . . Sneak Attacks . | . . . . Combat Hostiles . | . . . . Follow-up Attacks . | . . . . Damage Inflicted 1754 | . 1222 228 304 Guns 615 | . 615 . . Cannons 726 | . 460 228 38 Explosions 413 | . 147 . 266 Melee . | . . . . Ramming . | . . . . Kinetic 227 | . 227 . . Thermal 873 | . 607 228 38 Explosive 266 | . . . 266 Electromagnetic 388 | . 388 . . Impact . | . . . . Slashing . | . . . . Piercing . | . . . . Highest Corruption 3 | . 1 1 3 Average Corruption 1 | . 1 1 1 Corruption Purged . | . . . . Corruption Blocked . | . . . . Effects 15 | . 6 4 5 Message Errors 3 | . 2 . 1 Matter Fused 6 | . 1 4 1 Heat Flow Errors 3 | . 2 . 1 Energy Discharges 2 | . 1 . 1 Misfires 1 | . . . 1 Overload Shots . | . . . . Overflow Damage 38 | . 6 . 32 Projectiles 6 | . 6 . . Explosions 32 | . . . 32 Melee . | . . . . Knockbacks . | . . . . Impact . | . . . . Kinetic . | . . . . Secondary . | . . . . Self-Inflicted Damage 3 | . . . 3 Shots 1 | . . . 1 Rammed . | . . . . Targets Rammed . | . . . . Kicked . | . . . . Crushed . | . . . . Highest Temperature 327 | . 327 276 235 Average Temperature 100 | . 97 126 71 Received Heat Transfer 197 | . 69 108 20 Effects 2 | . 1 1 . Energy Bleed 2 | . 1 1 . Siege Activations . | . . . . Martial Activations . | . . . . Shielding Activations . | . . . . Robots Disrupted . | . . . . Combat Hostiles . | . . . . Robots Corrupted . | . . . . Combat Hostiles . | . . . . Parts Fried . | . . . . Impact Corruptions . | . . . . Robots Melted 1 | . . 1 . Combat Hostiles 1 | . . 1 . Parts Melted 4 | . 3 1 . Heat Transferred 1694 | . 1112 481 101 Parts Sabotaged . | . . . . Parts Stolen . | . . . . Parts Stripped . | . . . . Power Chain Reactions 3 | . 3 . . Alert | -11 -10 -10 -10 ------- Run | Yrd Mat Min Exi Maximum Alert Level 1 | . 1 . . Low Security (%) 87 | 100 83 100 . Level 1 12 | . 16 . . Level 2 . | . . . . Level 3 . | . . . . Level 4 . | . . . . Level 5 . | . . . . High Security . | . . . . Max Security . | . . . . Peak Influence 251 | . 251 61 . Initial 31 | . . 31 . Average 97 | . 121 27 . Influence Increases 655 | . 530 125 . Destroy 0b10 Robot/C 400 | . 300 100 . Destroy 0b10 Robot/NC 45 | . 40 5 . Destroy Leader 90 | . 70 20 . Successful Hack 21 | . 21 . . Select Force Hacks 60 | . 60 . . Disable Machine 30 | . 30 . . Destroy Structure 9 | . 9 . . Influence Decreases 655 | . 448 207 . Entered New Map 51 | . . 51 . Time Decay 584 | . 438 146 . Lost Part 20 | . 10 10 . Squads Dispatched 3 | . 3 . . Investigation 2 | . 2 . . Extermination . | . . . . Reinforcement 1 | . 1 . . Assault . | . . . . Garrison . | . . . . Intercept . | . . . . Searches Triggered . | . . . . Construction Impeded . | . . . . Haulers Reinforced . | . . . . Active Scanning Responses . | . . . . Cargo Convoy Interrupts . | . . . . Stealth | -11 -10 -10 -10 --------- Run | Yrd Mat Min Exi Distress Signals 2 | . 2 . . Communications Jammed . | . . . . Distress Signals . | . . . . Times Spotted 35 | . 21 6 8 Peak Tracking Total 9 | . 4 2 9 Tactical Retreats . | . . . . Traps | -11 -10 -10 -10 ------- Run | Yrd Mat Min Exi Traps Triggered 3 | . 3 . . Indirectly . | . . . . Trap Hack Attempts . | . . . . Triggered . | . . . . Disarmed . | . . . . Reprogrammed . | . . . . Reused . | . . . . Traps Extracted . | . . . . Installed . | . . . . Triggered . | . . . . Machines | -11 -10 -10 -10 ---------- Run | Yrd Mat Min Exi Machines Disabled 4 | . 2 . 2 Max in Single Turn 1 | . 1 . 1 Machines Repaired . | . . . . Machines Dismantled . | . . . . Machines Sabotaged . | . . . . Overloaded Fab Kills . | . . . . Hacking | -11 -10 -10 -10 --------- Run | Yrd Mat Min Exi Machines Accessed 9 | . 7 . 2 Terminals 5 | . 5 . . Fabricators . | . . . . Repair Stations . | . . . . Recycling Units 2 | . 2 . . Scanalyzers . | . . . . Garrison Access . | . . . . Total Hacks 20 | . 18 . 2 Successful 14 | . 12 . 2 Failed 5 | . 5 . . Catastrophic 2 | . 2 . . Database Lockouts 1 | . 1 . . Manual 16 | . 15 . 1 Terminals 16 | . 16 . . Fabricators . | . . . . Repair Stations . | . . . . Recycling Units 2 | . 2 . . Scanalyzers . | . . . . Garrison Access . | . . . . Terminal Hacks 7 | . 5 . 2 Record 1 | . . . 1 Robot Analysis 3 | . 3 . . Prototype ID Bank 2 | . 2 . . Proto ID Catalog 1 | . . . 1 Fabricator Hacks . | . . . . Repair Station Hacks . | . . . . Recycling Unit Hacks . | . . . . Scanalyzer . | . . . . Garrison Access Hacks . | . . . . Unauthorized Hacks 7 | . 7 . . Terminals 5 | . 5 . . Botnet 4 | . 4 . . Operators 1 | . 1 . . Fabricators . | . . . . Repair Stations . | . . . . Recycling Units 2 | . 2 . . Tunnel 2 | . 2 . . Scanalyzers . | . . . . Garrison Access . | . . . . Data Cores Recovered . | . . . . Used . | . . . . Hacking Detections 5 | . 5 . . Full Trace Events . | . . . . Feedback Events . | . . . . Feedback Blocked . | . . . . Robot Schematics Acquired . | . . . . Robots Built . | . . . . Authchips . | . . . . Time . | . . . . Total Robot Build Rating . | . . . . Part Schematics Acquired . | . . . . Parts Built . | . . . . Authchips . | . . . . Time . | . . . . Total Part Build Rating . | . . . . Part Studies Acquired . | . . . . Parts Repaired . | . . . . Time . | . . . . Parts Recycled . | . . . . Recycled Matter . | . . . . Retrieved Matter . | . . . . Retrieved Components . | . . . . Parts Scanalyzed . | . . . . Part Schematics Acquired . | . . . . Parts Damaged . | . . . . Bothacking | -11 -10 -10 -10 ------------ Run | Yrd Mat Min Exi Used RIF Installer . | . . . . Robots Hacked . | . . . . Non-combat . | . . . . Combat . | . . . . Robot Hacks Applied . | . . . . Relay Couplers Released . | . . . . Fabnet Peak Effective % . | . . . . Robots Rewired . | . . . . Allies Hacked . | . . . . Hacks Repelled . | . . . . Allies | -11 -10 -10 -10 -------- Run | Yrd Mat Min Exi Total Allies . | . . . . Largest Group . | . . . . Highest-Rated Group . | . . . . Highest-Rated Ally . | . . . . Total Orders . | . . . . Ally Attacks . | . . . . Total Damage . | . . . . Kills . | . . . . Allies Corrupted . | . . . . Allies Melted . | . . . . Intel | -11 -10 -10 -10 ------- Run | Yrd Mat Min Exi Active Infowar (turns) . | . . . . Robot Analysis Total 3 | . 3 . . Derelict Logs Recovered 1 | . . 1 . Drone Launches . | . . . . Drone Recoveries . | . . . . Exploration | -11 -10 -10 -10 ------------- Run | Yrd Mat Min Exi Turns Passed 2301 | 63 1229 338 671 Spaces Moved 1245 | 46 701 157 341 Core 3 | 3 . . . Treads . | . . . . Legs 1242 | 43 701 157 341 Wheels . | . . . . Hover . | . . . . Flight . | . . . . Fastest Speed 50 | 50 120 190 190 Average Speed 162 | 115 146 190 190 Slowest Speed 190 | 120 190 190 190 Overloaded Moves . | . . . . Propulsion Burnouts . | . . . . Robots Hopped . | . . . . Potential Cave-ins . | . . . . Cave-ins Triggered . | . . . . Exploration Rate (%) 53 | 5 96 53 58 Regions Visited 3 Branch Regions 2 Pre-discovered Areas 3 | . 2 . 1 Known Exits Taken . | . . . . Unknown Exits Taken 3 | 1 1 1 . Scrap Searched 1 | . . 1 . Spaces Dug . | . . . . Terrain Destroyed 32 | . 8 . 24 Melee . | . . . . Projectile . | . . . . AOE 32 | . 8 . 24 Terrain Rammed . | . . . . Walls Destroyed . | . . . . Machines Disabled . | . . . . Actions | -11 -10 -10 -10 --------- Run | Yrd Mat Min Exi Total 1378 | 52 794 177 355 Wait 8 | . 2 6 . Move 1242 | 45 700 156 341 Hop . | . . . . Pick Up 16 | . 12 2 2 Fast Attach 9 | 6 3 . . Attach 3 | . 1 1 1 Detach . | . . . . Swap 11 | 1 7 1 2 Drop 12 | . 9 1 2 Fire 77 | . 60 10 7 Melee . | . . . . Ram . | . . . . Kick . | . . . . Crush . | . . . . Escape Stasis . | . . . . Rewire . | . . . . Trap . | . . . . Miscellaneous . | . . . . Route ------- -11/Scrapyard -10/Materials (discovered 5 exits: [*Mat x3] / [*Min x2]) -10/Mines (discovered 2 exits: [*Mat] / *Exi) -10/Exiles History --------- Turn | Location | Event 6 | -11/Scrapyard | Discovered new exit (range 16) 64 | -11/Scrapyard | Entered Materials 212 | -10/Materials | Discovered new exit (range 11) 271 | -10/Materials | Discovered new exit (range 6) 306 | -10/Materials | Build established: Mutant 390 | -10/Materials | Discovered new exit (range 10) 671 | -10/Materials | Discovered new exit (range 8) 719 | -10/Materials | Discovered new exit (range 15) 1145 | -10/Materials | Central database locked down 1293 | -10/Materials | Entered Mines 1321 | -10/Mines | Learned Materials garrison access intel 1539 | -10/Mines | Received a Rocket Launcher from a helpful Derelict 1546 | -10/Mines | Discovered new exit (range 3) 1619 | -10/Mines | Deemed a non-threat by the Exiles lab entrance 1621 | -10/Mines | Discovered new exit (range 5) 1631 | -10/Mines | Entered Exiles 1677 | -10/Exiles | Met 8R-AWN 1709 | -10/Exiles | Met EX-HEX 1761 | -10/Exiles | Met EX-BIN 1799 | -10/Exiles | Aligned with FarCom system 1801 | -10/Exiles | Given EX-Vault access code 1844 | -10/Exiles | Opened EX-Vault 1860 | -10/Exiles | Found Modified TNC 1897 | -10/Exiles | Warned to stay clear of 0b10 Research branches 2038 | -10/Exiles | Learned location of Zion (-7) 2059 | -10/Exiles | Met EX-DEC 2282 | -10/Exiles | Attacked by the Exiles 2285 | -10/Exiles | Core integrity fell below 50% 2289 | -10/Exiles | Core integrity fell below 20% 2302 | -10/Exiles | Destroyed by 8R-AWN with 8R-AWN's Boregun Last Messages --------------- 02293_ HV Slug penetrates Machine. 02294_ The unstable cave ceiling collapses. 02295_ HV Slug penetrates Earth. 02295_ HV Slug penetrates Wall. 02295_ Penetrated by HV Slug. 02295_ Beam Cannon destroyed. 02295_ HV Slug penetrates Earth. 02296_ Aluminum Leg destroyed. 02297_ Penetrated by HV Slug. 02297_ HV Slug penetrates Earth. 02297_ Penetrated by HV Slug. 02297_ HV Slug penetrates Earth. 02300_ Penetrated by HV Slug. 02300_ Critical hit (Destroy). 02300_ Beam Cannon destroyed. 02300_ HV Slug penetrates Earth. 02300_ Penetrated by HV Slug. 02300_ HV Slug penetrates Earth. 02302_ System corrupted: Energy discharge (-9). 02302_ Penetrated by HV Slug. Map ----- +----------------------------------------------------+ | """#???????????????????????????????????????????? | | """#???????????????????????????????????????????? | | """#???????????????????????????????????????????? | | """#???????????????????????????????????????????? | | """##??????????????????????????????????????????? | | """""??????????????????????????????????????????? | | """##??????????????????????????????????????????? | | " """""??????????????????????????????????????????? | | " #???????????????????????????????????????????? | | """""#???????????????????????????????????????????? | | ######???????????????????????????????????????????? | | ?????????????????????????????????????????????????? | | ?????????????????????????????????????????????????? | | ?????????????????????????????????????????????????? | | ?###########???????????????????????????????????? | | ##"""""""""##??????????????????????????????????? | | " """ """"##?????????????????????????????????# | | "" " #???????????????????????????????## | | " """#???????????????????????????????# | | " "#???????????#####???????????????# | | " "##?????????##" #??????????????## | | ""###???????#" g #?????????????## | | """#?????###" ##????????????# | | "#????## ###????????### # | | ###### ########## # | | ## @ #""""## #? | | " # * ## | | % ## * # | | #### # | | % ?#"""""#### | | #?#######??#### * | | % ##??????????????##### | | a ????????????????????### | | " # ??????????????????????### | | """ # #????????????????????????### | | " ""#" ## #??????????????????????????#" | | "" """##"""""""##?# ???????????????????????????## | | #"""???#########??# ?????????????????????????????? | | ??????????????????# ?????????????????????????????? | | ?????????????????????????????????????????????????? | | ?????????????????????????????????????????????????? | | ?????????????????????????????????????????????????? | | ?????????????????????????????????????????????????? | | ?????????????????????????????????????????????????? | | ?????????????????????????????????????????????????? | | ?????????????????????????????????????????????????? | | ?????????????????????????????????????????????????? | | ?????????????????????????????????????????????????? | | ?????????????????????????????????????????????????? | | ?????????????????????????????????????????????????? | +----------------------------------------------------+ Best States ------------- Heat Dissipation 25 Energy Generation 10 Energy Capacity 250 Matter Stores 300 Matter Capacity 300 Sight Range 16 Terrain Scan Density 10 Evasion (%) 55 Targeting Accuracy 5 Item Schematics ----------------- None Robot Schematics ------------------ None Fabricated ------------ Nothing Repaired ---------- Nothing Studied --------- None Alien Tech Used ----------------- None Achievements -------------- None Challenges ------------ None Game ------ Seed RelayCompanionSpiker Manual? 0 Play Time 00:15:17 Cumulative 225.6 hours Start 2025.11.06 @ 19:12:06 End 2025.11.06 @ 19:24:23 Sessions 1 Manual Loads 0 Difficulty Rogue Special Mode None Game No. 232 Rogue 228 Adventurer 3 Explorer 1 Win Type - Total 1 Types 1/0/0/0/0/0/0/0/0/0 Lore% 72 Gallery% 73 Achievement% 57 Wizard Run 0 Options --------- Layout 0 ASCII 0 Keyboard 0 Movement Mouse Keybinds 0 Fullscreen 2 Font 18/SmallcapsGlow Map View 76x50 Zoom Use 0% Tactical HUD 1 Map Filters NONE Filters NONE Steam 1 RUN: b3f3287e-4e29-479e-892b-9e21556ee142